bitfinex/quotes_SOLUSD_20250902
["timestamp","ask_amount","ask_price","bid_price","bid_amount"]
[1756813154663,56.26565439,203.2,203.19,0.03]
[1756813155025,56.93565439,203.2,203.19,0.03]
[1756813156756,52.56991715,203.2,203.19,0.03]
[1756813156930,56.93565439,203.2,203.19,0.03]
[1756813158356,56.26565439,203.2,203.19,0.03]
[1756813158556,56.93565439,203.2,203.19,0.03]
[1756813160357,52.56991715,203.2,203.19,0.03]
[1756813160673,56.93565439,203.2,203.19,0.03]
[1756813167344,61.85691423,203.2,203.19,0.03]
[1756813167542,66.22265147,203.2,203.19,0.03]
[1756813167746,66.36481304,203.2,203.19,0.03]
[1756813168250,70.46293698,203.2,203.19,0.03]
[1756813168646,66.36481304,203.2,203.19,0.03]
[1756813169864,14.02207872,203.18,203.17,0.03]
[1756813170052,82.34781596,203.18,203.17,0.03]
[1756813170249,83.01781596,203.18,203.17,0.03]
[1756813171755,87.93956022,203.18,203.17,0.03]
[1756813171956,66.05259796,203.18,203.17,0.03]
[1756813172154,68.0262984,203.18,203.17,0.03]
[1756813172471,14.02207872,203.17,203.16,0.03]
[1756813172675,14.02207872,203.17,203.14,0.03]
[1756813172676,18.38781596,203.17,203.14,0.03]
[1756813172979,33.73775558,203.13,203.12,0.03]
[1756813173183,80.9935532,203.13,203.1,0.1]
[1756813173381,48.7535532,203.11,203.1,0.1]
[1756813173678,91.30120657,203.11,203.1,0.1]
[1756813173855,96.89464707,203.11,203.1,0.1]
[1756813174172,94.76147355,203.11,203.1,0.1]
[1756813174372,47.58999907,203.11,203.1,0.1]
[1756813174579,86.02999907,203.11,203.1,0.1]
[1756813174873,90.39573631,203.11,203.1,0.1]
[1756813175454,94.76147355,203.11,203.1,0.1]
[1756813181489,100.02715017,203.11,203.1,0.1]
[1756813186776,98.05267032,203.11,203.1,0.1]
[1756813188392,28.01922982,203.1,203.06,0.1]
[1756813188892,28.71922982,203.1,203.06,0.1]
[1756813189268,33.64291273,203.1,203.06,0.1]
[1756813189470,35.61739258,203.1,203.06,0.1]
[1756813190302,39.59559401,203.07,203.06,0.1]
[1756813190511,13.73775558,203.06,203.04,0.03]
[1756813190724,42.82150894,203.04,203.03,0.03]
[1756813191176,43.52150894,203.04,203.03,0.03]
[1756813191384,45.49667128,203.04,203.03,0.03]
[1756813192184,50.42180918,203.04,203.03,0.03]
[1756813193072,80.71507949,203.04,203.03,0.03]
[1756813193274,83.49450971,203.04,203.03,0.03]
[1756813193487,83.49450971,203.04,203.03,0.74]
[1756813193671,81.51934737,203.04,203.03,0.74]
[1756813193880,81.51934737,203.04,203.03,0.03]
[1756813199412,86.44448527,203.04,203.03,0.03]
[1756813201009,87.14448527,203.04,203.03,0.03]
[1756813202390,87.28664684,203.04,203.03,0.03]
[1756813202797,89.26180918,203.04,203.03,0.03]
[1756813205126,16.67934737,203.03,203.02,0.03]
[1756813205526,17.37934737,203.03,203.02,0.03]
[1756813205693,58.09460724,203.03,203.02,0.03]
[1756813205898,63.01998772,203.03,203.02,0.03]
[1756813206521,152.45460724,203.03,203.02,0.03]
[1756813206703,152.1702841,203.03,203.02,0.74]
[1756813206908,149.37085388,203.03,203.02,0.74]
[1756813207212,38.76,203.03,203.02,3.53943022]
[1756813207426,52.63991715,203.03,203.02,3.53943022]
[1756813207601,52.35559401,203.03,203.02,3.53943022]
[1756813208018,52.35559401,203.03,203.02,8.46505331]
[1756813208525,52.63991715,203.03,203.02,8.46505331]
[1756813208904,5.02658721,203.08,203.02,8.46505331]
[1756813209118,52.35559401,203.07,203.04,2.79943022]
[1756813209322,52.35559401,203.07,203.05,0.7]
[1756813209617,52.35559401,203.07,203.04,2.79943022]
[1756813209810,52.35559401,203.07,203.03,2.79943022]
[1756813210003,52.35559401,203.07,203.04,4.9251379]
[1756813210004,0.28432314,203.06,203.04,4.9251379]
[1756813210314,52.49775558,203.05,203.04,4.9251379]
[1756813210528,52.63991715,203.05,203.04,7.72456812]
[1756813210701,52.63991715,203.05,203.04,8.42456812]
[1756813211524,52.63991715,203.05,203.04,5.6251379]
[1756813211902,39.04432314,203.05,203.04,8.42456812]
[1756813212103,13.59559401,203.13,203.04,8.42456812]
[1756813212304,16.39502423,203.11,203.05,0.7]
[1756813212519,38.74,203.12,203.02,0.03]
[1756813212520,13.73775558,203.05,203.03,4.92532849]
[1756813212712,39.00432314,203.04,203.03,4.92532849]
[1756813213114,39.00432314,203.04,203.02,0.03]
[1756813213115,13.87991715,203.03,203.02,0.03]
[1756813213322,133.8,203.1,203.02,8.45505331]
[1756813213505,13.59559401,203.08,203.07,2.79943022]
[1756813213827,52.61991715,203.08,203.07,2.79943022]
[1756813214132,0.14216157,203.08,203.07,8.42384052]
[1756813214320,38.86216157,203.08,203.07,8.42384052]
[1756813214507,39.00432314,203.08,203.07,8.42384052]
[1756813215108,38.86216157,203.08,203.07,5.6244103]
[1756813215306,38.86216157,203.08,203.07,8.42384052]
[1756813215519,39.00432314,203.08,203.07,8.42384052]
[1756813216431,13.59559401,203.12,203.07,8.42384052]
[1756813216600,0.06,203.14,203.11,2.79943022]
[1756813216807,52.29559401,203.13,203.12,3.49943022]
[1756813217107,52.57991715,203.13,203.12,0.7]
[1756813217729,52.29559401,203.13,203.12,0.7]
[1756813217902,38.68,203.13,203.12,3.49943022]
[1756813218303,38.68,203.13,203.12,8.42262832]
[1756813218528,38.82216157,203.13,203.12,8.42262832]
[1756813218928,38.96432314,203.13,203.12,8.42262832]
[1756813219531,0.06,203.14,203.12,8.42262832]
[1756813219710,38.66,203.13,203.11,4.92342396]
[1756813219910,0.28432314,203.12,203.11,4.92342396]
[1756813220311,13.87991715,203.12,203.09,5.62372615]
[1756813220526,38.66,203.11,203.09,5.62372615]
[1756813220716,38.94432314,203.11,203.1,0.7]
[1756813221329,0.06,203.14,203.1,3.49943022]
[1756813221512,38.66,203.13,203.11,0.7]
[1756813221906,0.06,203.14,203.11,0.7]
[1756813222428,0.06,203.14,203.12,4.9231981]
[1756813222628,0.06,203.13,203.12,30.9231981]
[1756813222832,0.06,203.13,203.12,8.42262832]
[1756813223637,0.06,203.13,203.12,8.56478989]
[1756813224343,0.06,203.14,203.13,30.92295574]
[1756813224545,0.06,203.14,203.13,34.42238596]
[1756813225438,0.06,203.14,203.13,34.56454753]
[1756813225752,1e-08,203.14,203.13,34.56454753]
[1756813226755,1e-08,203.16,203.13,34.56454753]
[1756813226928,1e-08,203.16,203.15,2.94159179]
[1756813227329,1e-08,203.16,203.15,3.64159179]
[1756813228344,1e-08,203.16,203.15,8.56406287]
[1756813230723,1e-08,203.18,203.17,26.14216157]
[1756813230947,1e-08,203.18,203.17,28.94159179]
[1756813231148,1e-08,203.18,203.17,29.64159179]
[1756813231454,1e-08,203.18,203.17,44.43339713]
[1756813232558,1e-08,203.18,203.17,46.55595342]
[1756813232748,1e-08,203.18,203.17,49.35538364]
[1756813234467,0.06,203.21,203.17,49.35538364]
[1756813234468,0.06,203.21,203.17,73.35026945]
[1756813234764,0.06,203.21,203.2,40.13931267]
[1756813235142,0.06,203.21,203.2,40.83931267]
[1756813235339,0.06,203.21,203.2,42.81135892]
[1756813236646,0.06,203.21,203.2,47.73261876]
[1756813237239,0.06,203.21,203.2,33.72069006]
[1756813237448,0.78,203.21,203.2,33.72069006]
[1756813238241,0.06,203.21,203.2,33.72069006]
[1756813241247,0.76,203.21,203.2,33.72069006]
[1756813241456,0.76,203.21,203.2,35.286254]
[1756813241961,0.06,203.21,203.2,35.286254]
[1756813243962,0.06,203.21,203.2,40.46340973]
[1756813244346,0.06,203.22,203.2,42.43545598]
[1756813244539,0.06,203.22,203.21,4.36499416]
[1756813244743,0.06,203.22,203.21,5.03499416]
[1756813244978,0.06,203.22,203.21,7.00704041]
[1756813245571,0.06,203.22,203.21,7.14920198]
[1756813247187,0.06,203.22,203.21,7.70522548]
[1756813247357,0.06,203.22,203.21,12.07021964]
[1756813248064,0.76,203.22,203.21,11.40021964]
[1756813248382,0.76,203.22,203.21,11.25805807]
[1756813248558,0.76,203.22,203.21,6.89306391]
[1756813248960,0.76,203.22,203.21,11.25805807]
[1756813249970,0.06,203.22,203.21,11.25805807]
[1756813250474,0.06,203.22,203.21,11.92805807]
[1756813250881,1e-08,203.22,203.21,12.07021964]
[1756813252769,1e-08,203.22,203.21,11.40021964]
[1756813254390,1e-08,203.22,203.21,11.25805807]
[1756813254567,0.70000001,203.22,203.21,11.25805807]
[1756813254991,1e-08,203.22,203.21,11.25805807]
[1756813255371,1e-08,203.22,203.21,11.40021964]
[1756813255669,1e-08,203.22,203.21,12.07021964]
[1756813256077,1e-08,203.22,203.21,11.40021964]
[1756813257595,1e-08,203.22,203.21,11.43021964]
[1756813258384,0.70000001,203.22,203.21,6.92306391]
[1756813258586,1e-08,203.22,203.21,35.31601182]
[1756813259092,1e-08,203.22,203.21,37.28805807]
[1756813259261,1e-08,203.22,203.21,38.5923214]
[1756813259467,1e-08,203.22,203.21,50.9123214]
[1756813260388,1e-08,203.23,203.21,50.9123214]
[1756813260595,1e-08,203.23,203.22,5.03499416]
[1756813260890,0.06,203.25,203.22,5.17715573]
[1756813261089,0.06,203.25,203.24,4.36499416]
[1756813261309,0.06,203.26,203.24,4.36499416]
[1756813261511,0.06,203.28,203.26,8.87214989]
[1756813261803,0.06,203.31,203.27,39.791715]
[1756813261984,0.06,203.31,203.3,8.72998832]
[1756813262167,0.06,203.31,203.3,8.87214989]
[1756813262882,0.06,203.31,203.3,13.79098904]
[1756813263596,0.06,203.31,203.3,9.42599488]
[1756813264599,0.76,203.31,203.3,9.42599488]
[1756813265594,0.76,203.31,203.3,9.28383331]
[1756813269684,0.06,203.31,203.3,9.28383331]
[1756813270278,0.06,203.31,203.3,14.51098904]
[1756813270572,0.06,203.31,203.3,13.79098904]
[1756813271304,0.06,203.31,203.3,9.42599488]
[1756813272900,0.06,203.31,203.3,9.28383331]
[1756813273114,0.06,203.31,203.3,4.91883915]
[1756813273320,0.78,203.31,203.3,9.28383331]
[1756813274906,0.78,203.31,203.29,5.06124268]
[1756813275090,0.78,203.31,203.3,4.36499416]
[1756813275292,0.06,203.31,203.3,4.36499416]
[1756813277096,0.06,203.31,203.3,9.28383331]
[1756813278308,0.78,203.31,203.3,9.28383331]
[1756813280592,0.78,203.31,203.28,2.00117161]
[1756813280593,0.78,203.31,203.28,0.03]
[1756813280796,1.06432314,203.31,203.28,0.03]
[1756813282794,5.4293173,203.31,203.28,0.03]
[1756813283326,1.06432314,203.31,203.28,0.03]
[1756813283700,5.4293173,203.31,203.28,0.03]
[1756813284017,1.06432314,203.31,203.28,0.03]
[1756813285324,1.06432314,203.31,203.28,4.39499416]
[1756813285494,1.00432314,203.3,203.28,4.39499416]
[1756813285692,0.72,203.29,203.28,4.39499416]
[1756813287103,0.72,203.29,203.28,0.03]
[1756813288003,0.72,203.29,203.28,4.39499416]
[1756813289014,0.72,203.29,203.28,0.03]
[1756813291123,0.06,203.31,203.28,4.39499416]
[1756813291307,0.06,203.31,203.3,8.72998832]
[1756813291625,0.06,203.31,203.3,8.87214989]
[1756813291807,0.06,203.31,203.3,9.59214989]
[1756813292527,0.06,203.31,203.3,5.22715573]
[1756813292829,0.06,203.31,203.3,10.14599488]
[1756813296532,0.06,203.31,203.3,40.51098904]
[1756813296833,0.06,203.31,203.3,16.48196639]
[1756813298029,0.06,203.31,203.3,7.75197807]
[1756813298340,0.06,203.31,203.3,12.11697223]
[1756813300427,0.06,203.31,203.3,16.48196639]
[1756813301429,0.06,203.31,203.3,12.11697223]
[1756813301607,0.06,203.31,203.3,11.39697223]
[1756813303425,0.06,203.31,203.3,9.82213147]
[1756813303622,0.06,203.31,203.3,33.03197807]
[1756813303935,0.06,203.31,203.3,35.82213147]
[1756813305715,0.06,203.31,203.3,33.03197807]
[1756813305914,0.77,203.31,203.3,35.82213147]
[1756813306108,0.77,203.31,203.3,33.85115412]
[1756813307335,0.06,203.31,203.3,33.85115412]
[1756813308111,0.77,203.31,203.3,30.91883915]
[1756813308321,0.77,203.31,203.3,33.70899255]
[1756813308515,0.06,203.31,203.3,19.71176772]
[1756813308737,1e-08,203.33,203.31,0.14216157]
[1756813308919,1e-08,203.33,203.32,2.7901534]
[1756813309320,1e-08,203.33,203.32,8.4085087]
[1756813310646,1e-08,203.33,203.32,10.37919475]
[1756813312049,1e-08,203.33,203.32,9.67919475]
[1756813312949,0.71000001,203.33,203.32,7.7085087]
[1756813313245,0.71000001,203.33,203.32,4.9183553]
[1756813313446,0.71000001,203.33,203.32,33.7085087]
[1756813313642,0.71000001,203.33,203.32,30.9183553]
[1756813313851,0.71000001,203.33,203.32,33.7085087]
[1756813314537,1e-08,203.33,203.32,33.7085087]
[1756813317548,1e-08,203.33,203.32,30.9183553]
[1756813318052,1e-08,203.33,203.32,33.7085087]
[1756813318258,1e-08,203.33,203.32,33.85067027]
[1756813318625,0.71000001,203.33,203.32,33.85067027]
[1756813319548,1e-08,203.33,203.32,33.85067027]
[1756813322555,1e-08,203.33,203.32,31.06051687]
[1756813322751,1e-08,203.33,203.32,33.85067027]
[1756813324639,1e-08,203.33,203.32,30.9183553]
[1756813324847,0.71000001,203.33,203.32,33.7085087]
[1756813325358,1e-08,203.33,203.32,33.7085087]
[1756813325559,0.71000001,203.33,203.32,33.7085087]
[1756813326364,1e-08,203.33,203.32,35.67948606]
[1756813328453,1e-08,203.33,203.32,36.37948606]
[1756813328659,1e-08,203.33,203.32,35.67948606]
[1756813328859,1e-08,203.33,203.32,36.53164763]
[1756813333667,1e-08,203.33,203.32,74.59164763]
[1756813336672,1e-08,203.33,203.32,35.82164763]
[1756813336851,1e-08,203.33,203.32,73.88164763]
[1756813341655,1e-08,203.33,203.32,35.82164763]
[1756813341953,1e-08,203.33,203.32,73.88164763]
[1756813342382,1e-08,203.33,203.32,71.09149423]
[1756813342560,1e-08,203.33,203.32,73.88164763]
[1756813345769,1e-08,203.34,203.32,73.88164763]
[1756813345976,1e-08,203.34,203.33,2.7901534]
[1756813346453,1e-08,203.34,203.33,4.76074236]
[1756813346876,1e-08,203.34,203.33,9.67885577]
[1756813347481,1e-08,203.34,203.33,6.88870237]
[1756813347670,1e-08,203.34,203.33,9.67885577]
[1756813348269,1e-08,203.34,203.33,9.82101734]
[1756813348588,1e-08,203.36,203.35,26.14216157]
[1756813348786,1e-08,203.36,203.35,66.99231497]
[1756813348989,1e-08,203.36,203.35,67.70231497]
[1756813349289,1e-08,203.36,203.35,69.67261273]
[1756813349462,1e-08,203.36,203.35,68.96261273]
[1756813350165,1e-08,203.36,203.35,73.88024243]
[1756813350870,1e-08,203.36,203.35,74.59024243]
[1756813353768,1e-08,203.36,203.35,73.88024243]
[1756813356095,1e-08,203.36,203.35,71.09008903]
[1756813356386,1e-08,203.36,203.35,74.59024243]
[1756813356982,1e-08,203.36,203.35,73.88024243]
[1756813359791,0.69000001,203.36,203.35,73.86024243]
[1756813360492,1e-08,203.36,203.35,73.86024243]
[1756813362483,1e-08,203.36,203.35,71.07008903]
[1756813362684,0.69000001,203.36,203.35,73.86024243]
[1756813363075,0.69000001,203.36,203.35,71.07008903]
[1756813363290,0.69000001,203.36,203.35,73.86024243]
[1756813363674,0.69000001,203.36,203.35,35.82024243]
[1756813363875,0.69000001,203.36,203.35,73.86024243]
[1756813364902,0.69000001,203.36,203.35,73.89024243]
[1756813365502,0.69000001,203.36,203.35,75.45798731]
[1756813365686,0.69000001,203.36,203.35,71.10008903]
[1756813365875,0.69000001,203.36,203.35,75.45798731]
[1756813371988,0.69000001,203.36,203.35,33.06008903]
[1756813372193,0.69000001,203.36,203.35,37.41798731]
[1756813377821,1e-08,203.36,203.35,37.41798731]
[1756813378598,1e-08,203.36,203.35,38.11798731]
[1756813379994,1e-08,203.36,203.35,37.41798731]
[1756813382199,1e-08,203.36,203.35,38.11798731]
[1756813383010,1e-08,203.36,203.35,37.41798731]
[1756813388113,1e-08,203.36,203.35,38.11798731]
[1756813388516,1e-08,203.38,203.35,38.11798731]
[1756813388725,1e-08,203.38,203.37,4.50005985]
[1756813389100,1e-08,203.38,203.37,32.47035761]
[1756813389512,0.71000001,203.38,203.37,32.47035761]
[1756813389730,0.71000001,203.38,203.37,70.47035761]
[1756813390235,0.71000001,203.38,203.37,75.38750369]
[1756813390413,0.71000001,203.38,203.37,37.38750369]
[1756813395426,1e-08,203.38,203.37,37.38750369]
[1756813395925,1e-08,203.38,203.37,38.05750369]
[1756813396309,1e-08,203.38,203.37,37.38750369]
[1756813397540,1e-08,203.38,203.37,33.02960541]
[1756813397717,1e-08,203.38,203.37,75.38750369]
[1756813399238,0.71000001,203.38,203.37,75.38750369]
[1756813399941,0.71000001,203.38,203.37,75.41750369]
[1756813400327,0.71000001,203.38,203.37,37.41750369]
[1756813400539,0.71000001,203.38,203.37,75.41750369]
[1756813401734,0.71000001,203.38,203.37,37.41750369]
[1756813401946,0.71000001,203.38,203.37,75.41750369]
[1756813402151,0.71000001,203.38,203.37,33.05960541]
[1756813402440,0.71000001,203.38,203.37,37.41750369]
[1756813404523,0.71000001,203.38,203.37,33.05960541]
[1756813404843,0.71000001,203.38,203.37,37.41750369]
[1756813405350,1e-08,203.38,203.37,37.41750369]
[1756813407521,0.71000001,203.38,203.37,32.91744384]
[1756813407834,18.94781544,203.38,203.37,0.03]
[1756813408041,0.28432314,203.37,203.35,0.03]
[1756813408241,4.64222142,203.36,203.35,0.03]
[1756813408481,5.35222142,203.36,203.35,0.03]
[1756813410345,18.94781543,203.36,203.35,0.03]
[1756813411662,19.50730503,203.36,203.35,0.03]
[1756813411861,25.83656922,203.36,203.35,0.03]
[1756813412456,20.91918134,203.36,203.35,0.03]
[1756813413960,25.83656922,203.36,203.35,0.03]
[1756813414144,29.95349088,203.36,203.35,0.03]
[1756813414345,14.02207872,203.35,203.34,0.03]
[1756813414550,18.379977,203.35,203.34,0.03]
[1756813414743,19.089977,203.35,203.34,0.03]
[1756813414974,21.06192603,203.35,203.34,0.03]
[1756813415573,25.83739416,203.35,203.34,0.03]
[1756813416863,16.27754304,203.35,203.34,0.03]
[1756813417059,18.66349229,203.35,203.34,0.03]
[1756813417261,18.94781543,203.35,203.34,0.03]
[1756813417771,20.77701977,203.35,203.34,0.03]
[1756813417963,20.91918134,203.35,203.34,0.03]
[1756813418754,25.83681104,203.35,203.34,0.03]
[1756813419746,20.91918134,203.35,203.34,0.03]
[1756813419947,15.70912149,203.35,203.34,0.03]
[1756813420144,0.06,203.37,203.34,4.38789828]
[1756813420360,0.06,203.37,203.36,4.35789828]
[1756813420755,0.06,203.37,203.36,5.00789828]
[1756813420955,0.06,203.37,203.36,4.35789828]
[1756813421372,0.06,203.37,203.36,6.32868142]
[1756813421568,0.06,203.37,203.36,6.97868142]
[1756813421760,0.06,203.37,203.36,11.8960693]
[1756813421960,0.06,203.37,203.36,12.03823087]
[1756813423748,0.06,203.37,203.36,6.88817102]
[1756813423968,0.06,203.37,203.36,11.8960693]
[1756813424765,0.06,203.37,203.36,12.03823087]
[1756813424969,0.06,203.37,203.36,38.03823087]
[1756813426379,0.06,203.37,203.36,37.2460693]
[1756813426568,0.06,203.37,203.36,6.88817102]
[1756813426760,0.06,203.37,203.36,11.2460693]
[1756813427568,0.06,203.37,203.36,9.67755578]
[1756813427788,0.78,203.37,203.36,9.67755578]
[1756813428089,0.06,203.37,203.36,9.67755578]
[1756813430860,0.06,203.37,203.36,6.88817102]
[1756813431061,0.06,203.37,203.36,9.67755578]
[1756813433159,0.06,203.37,203.36,7.53817102]
[1756813433367,0.06,203.37,203.36,10.32755578]
[1756813434096,0.06,203.37,203.36,9.67755578]
[1756813435988,0.78,203.37,203.36,1.97078314]
[1756813436390,0.06,203.37,203.36,6.88817102]
[1756813437070,0.78,203.37,203.36,6.88817102]
[1756813437778,0.78,203.37,203.36,1.97078314]
[1756813438186,0.78,203.37,203.35,0.03]
[1756813438388,2.78938476,203.36,203.35,2.87938476]
[1756813438692,3.7937079,203.36,203.35,2.87938476]
[1756813438987,1.00432314,203.36,203.35,2.87938476]
[1756813441877,1.00432314,203.36,203.35,0.03]
[1756813443509,1.00432314,203.36,203.34,2.81938477]
[1756813443510,13.87991715,203.35,203.34,0.03]
[1756813443789,16.66930191,203.35,203.32,0.03]
[1756813443994,16.66930191,203.33,203.32,0.03]
[1756813444172,17.38930191,203.33,203.32,0.03]
[1756813444789,19.36105653,203.33,203.32,0.03]
[1756813446025,22.30741532,203.33,203.32,0.03]
[1756813446377,24.27936434,203.33,203.32,0.03]
[1756813450192,17.38930191,203.33,203.32,0.03]
[1756813450410,13.73775558,203.33,203.32,0.03]
[1756813450804,0.67,203.35,203.32,0.03]
[1756813451000,0.67,203.33,203.32,0.03]
[1756813451312,0.95432314,203.33,203.32,0.03]
[1756813452908,0.28432314,203.33,203.32,0.03]
[1756813454290,13.87991715,203.35,203.32,0.03]
[1756813454684,14.54991715,203.35,203.32,0.03]
[1756813455890,17.33930191,203.35,203.32,0.03]
[1756813457211,16.66930191,203.35,203.32,0.03]
[1756813457512,0.67,203.34,203.32,0.03]
[1756813458019,16.66930191,203.35,203.32,0.03]
[1756813458320,0.67,203.34,203.32,0.03]
[1756813460902,14.26559401,203.33,203.32,0.03]
[1756813461102,14.54991715,203.33,203.32,0.03]
[1756813462095,17.33930191,203.33,203.32,0.03]
[1756813464028,22.25741532,203.33,203.32,0.03]
[1756813464324,22.39957689,203.33,203.32,0.03]
[1756813464691,24.37172037,203.33,203.32,0.03]
[1756813465327,50.37172037,203.33,203.32,0.03]
[1756813475909,47.44017404,203.33,203.32,0.03]
[1756813476225,47.44017404,203.33,203.32,0.69]
[1756813476226,13.59559401,203.33,203.32,0.69]
[1756813476525,13.87991715,203.33,203.32,0.69]
[1756813477624,13.87991715,203.33,203.32,0.03]
[1756813477826,22.25741532,203.33,203.32,0.03]
[1756813478003,21.58741532,203.33,203.32,0.03]
[1756813479100,22.24741532,203.33,203.32,0.03]
[1756813480233,16.66930191,203.33,203.32,0.7]
[1756813480520,13.87991715,203.33,203.32,0.7]
[1756813480931,13.87991715,203.33,203.29,2.81938476]
[1756813480932,0.28432314,203.32,203.16,0.03]
[1756813481237,42.81146348,203.28,203.23,0.03]
[1756813481402,17.47146348,203.28,203.23,0.03]
[1756813481603,40.02207872,203.27,203.23,0.03]
[1756813481803,14.02207872,203.26,203.23,0.03]
[1756813482003,22.39127062,203.26,203.23,0.03]
[1756813484434,19.60188586,203.26,203.23,0.03]
[1756813484607,22.39127062,203.26,203.23,0.03]
[1756813486328,24.36409496,203.26,203.23,0.03]
[1756813487539,25.94245494,203.26,203.23,0.03]
[1756813491707,26.00245494,203.26,203.23,0.03]
[1756813492122,20.28048623,203.26,203.23,0.7]
[1756813492416,25.20029337,203.26,203.23,0.7]
[1756813495937,14.02207872,203.22,203.2,0.03]
[1756813496238,22.7575682,203.22,203.2,0.03]
[1756813496446,23.4175682,203.22,203.2,0.03]
[1756813496618,45.39087917,203.22,203.2,0.03]
[1756813497553,50.31165468,203.22,203.2,0.03]
[1756813498921,30.31165468,203.22,203.2,0.03]
[1756813499117,42.61359346,203.22,203.18,0.03]
[1756813499352,44.38982346,203.19,203.18,0.03]
[1756813499728,20.22107021,203.19,203.18,0.7]
[1756813500242,20.22107021,203.19,203.18,0.03]
[1756813500547,15.85332547,203.19,203.18,0.7]
[1756813500748,20.22107021,203.19,203.18,0.7]
[1756813501254,20.22107021,203.19,203.18,0.03]
[1756813501620,20.22107021,203.19,203.18,0.7]
[1756813501952,13.87991715,203.19,203.18,0.7]
[1756813502245,13.73775558,203.19,203.18,0.7]
[1756813502641,13.87991715,203.19,203.18,0.7]
[1756813504947,13.87991715,203.19,203.18,5.62174426]
[1756813505422,0.28432314,203.19,203.18,9.989489]
[1756813506523,13.59559401,203.2,203.18,9.989489]
[1756813506727,0.06,203.26,203.19,4.36774474]
[1756813506938,13.65559401,203.26,203.23,4.36774474]
[1756813507143,0.06,203.26,203.25,4.36774474]
[1756813507350,0.06,203.26,203.25,5.03774474]
[1756813508227,0.06,203.26,203.25,9.95779394]
[1756813510040,0.06,203.26,203.25,0.67]
[1756813510672,0.28432314,203.25,203.17,0.03]
[1756813510835,13.87991715,203.19,203.17,0.03]
[1756813511354,13.87991715,203.19,203.17,0.73]
[1756813512256,18.24766189,203.19,203.17,0.03]
[1756813512648,13.87991715,203.19,203.17,0.03]
[1756813513158,18.24766189,203.19,203.17,0.03]
[1756813514264,13.87991715,203.19,203.17,0.03]
[1756813514461,13.87991715,203.19,203.18,0.73]
[1756813515450,13.87991715,203.19,203.18,0.03]
[1756813516049,18.24766189,203.19,203.18,0.03]
[1756813517873,13.87991715,203.19,203.18,0.03]
[1756813518569,13.87991715,203.19,203.18,0.73]
[1756813520970,52.57991715,203.19,203.18,10.019489]
[1756813521358,38.98432314,203.19,203.18,10.019489]
[1756813522671,38.7,203.2,203.18,10.019489]
[1756813522856,38.98432314,203.2,203.19,0.7]
[1756813523060,38.98432314,203.2,203.18,4.39774474]
[1756813523267,38.98432314,203.2,203.18,10.01947247]
[1756813524061,38.98432314,203.2,203.19,0.7]
[1756813524264,38.98432314,203.2,203.19,5.06774474]
[1756813524665,38.98432314,203.2,203.19,9.98924678]
[1756813525060,38.98432314,203.2,203.19,5.62150204]
[1756813525656,38.98432314,203.2,203.19,9.98924678]
[1756813526465,38.98432314,203.2,203.19,4.92150204]
[1756813527283,38.98432314,203.2,203.18,9.31944836]
[1756813527780,38.98432314,203.2,203.18,10.01944836]
[1756813528369,39.04432314,203.2,203.18,10.01944836]
[1756813528681,39.04432314,203.2,203.19,4.36774474]
[1756813531479,13.87991715,203.16,203.15,0.03]
[1756813531683,56.88766189,203.16,203.15,0.03]
[1756813531891,57.57766189,203.16,203.15,0.03]
[1756813532863,53.20991715,203.16,203.15,0.03]
[1756813533184,57.57766189,203.16,203.15,0.03]
[1756813533599,62.49989067,203.16,203.15,0.03]
[1756813534471,13.73775558,203.16,203.15,0.03]
[1756813534664,57.14550032,203.16,203.15,0.03]
[1756813535481,52.91991715,203.16,203.15,0.03]
[1756813535683,57.28766189,203.16,203.15,0.03]
[1756813536174,52.91991715,203.16,203.15,0.03]
[1756813536375,57.28766189,203.16,203.15,0.03]
[1756813538683,52.91991715,203.16,203.15,0.03]
[1756813538990,57.28766189,203.16,203.15,0.03]